Workbook

Sheet Choose SIC and Region
B1: Rates and SIC Codes
A2: California PPO Rate Area Definitions
A3: Region 1 | D3: Region 2
A4: ZIP Codes 900–908, 910–928, 930, 932–933, 935–938, 952–953, and 956–958. The following ZIP Codes are excluded from Region 1 but included in Region 2: 92222, 92227, 92231–92233, 92243–92244, 92249–92251, 92257, 92259, 92266, 92273, 92275, 92281, 92283, 92328, 92384, 92389, 93013, 93014, 93067, 93512–93515, 93517, 93522, 93526, 93529–93530, 93541–93542, 93545–93546, 93549, 95646, 95724, 95728 | D4: ZIP Codes: 931, 934, 939–951, 954–955, 959–961, 92222, 92227, 92231–92233, 92243–92244, 92249–92251, 92257, 92259, 92266, 92273, 92275, 92281, 92283, 92328, 92384, 92389, 93013–93014, 93067, 93512–93515, 93517, 93522, 93526, 93529–93530, 93541–93542, 93545–93546, 93549, 95646, 95724, 95728
A6: California DHMO Rate Area Definitions
A7: Region 1 and Region 2 | D7: Region 3
A8: Los Angeles | D8: Alameda | E8: Mariposa | F8: San Francisco
A9: Orange | D9: Contra Costa | E9: Riverside | F9: San Mateo
D10: Fresno | E10: San Bernardino | F10: Santa Clara
D11: Kern | E11: San Diego | F11: Ventura
A12: Region 4 | D12: Region 5
A13: Alpine | B13: Marin | C13: San Luis Obispo | D13: Butte | E13: Mendocino | F13: Siskiyou
A14: Amador | B14: Merced | C14: Santa Barbara | D14: Del Norte | E14: Modoc | F14: Sutter
A15: Calaveras | B15: Monterey | C15: Sierra | D15: Glenn | E15: Mono | F15: Tehama
A16: Colusa | B16: Napa | C16: Solano | D16: Humboldt | E16: San Benito | F16: Trinity
A17: El Dorado | B17: Nevada | C17: Sonoma | D17: Lake | E17: Santa Cruz | F17: Yuba
A18: Imperial | B18: Placer | C18: Stanislaus | D18: Lassen | E18: Shasta
A19: Inyo | B19: Plumas | C19: Tuolumne
A20: Kings | B20: Sacramento | C20: Tulare
A21: Madera | B21: San Joaquin | C21: Yolo
A23: SIC Level Classifications
A24: Level 1 Eligible Industries
A25: Advertising (except Misc., not classified 7319) | C25: 7311-7313 | D25: Hospitals | F25: 8062-8069
A26: Agriculture, Forestry, Fishing (except seasonal employees) | C26: 0100-0999 | D26: Independent Auto Repair and Services | F26: 7532-7599
A27: Auto Rental Agencies | C27: 7513-7519 | D27: Laundry/Garment Service/Show Repair Services | F27: 7211-7219, 7251
A28: Automobile Parking Services | C28: 7521 | D28: Manufacturing (except Jewelry Manufacturing) | F28: 2000-2699
A29: Building Maintenance / Equipment Rental | C29: 7349-7359 | D29: Manufacturing (Chemicals, Allied and Other) | F29: 2810-3999
A30: Collection Agencies and Credit Reporting Services | C30: 7322-7323 | D30: Mining, Oil and Gas Extraction | F30: 1000-1499
A31: Communication (Radio, Telephone, TV/Radio Broadcasting) | C31: 4800-4899 | D31: Miscellaneous Repair (Welding, etc) | F31: 7692-7699
A32: Community Services Organizations / Social Services | C32: 8300-8499 | D32: New Syndicates | F32: 7383
A33: Computer Programming and Other Computer Services | C33: 7371-7379 | D33: Photofinishing Labs | F33: 7384
A34: Construction Contractors | C34: 1500-1799 | D34: Printing and Publishing | F34: 2700 - 2799
A35: Direct Mailing, Reproduction, Secretarial Services | C35: 7331-7338 | D35: Public Administration (Cities, Counties, Police, etc) | F35: 9000-9720, 9722-9998
A36: Disinfecting and Pest Control Services | C36: 7342 | D36: Retail | F36: 5200-5510, 5610-5699, 5712-5736, 5912-5999,
A37: Government Funded Groups | C37: 8300-8499 | D37: Public and Private Schools (Elmentary and High School) | F37: 8200-8299
A38: Electrical Repair (Radio, TV, A/C, Refrigerator) | C38: 7622-7629 | D38: Security Systems, Detectives, Armored Car | F38: 7381-7382
A39: Engineering and Management Services | C39: 8711-8748 | D39: Transportation | F39: 4000-4799
A40: Finance (Banks, Securities, Credit Agencies) | C40: 6000-6299 | D40: Utilities | F40: 4900-4999
A41: Funeral Services and Crematories | C41: 7261 | D41: Wholesale Trade | F41: 5000-5199
A42: Furniture Repair/Reupholstery | C42: 7641 | D42: Museum Art Galleries and Gardens | F42: 8412, 8422
A43: Misc. Computer Services | C43: 7379
A44: Level 2 Eligible Industries
A45: Advertising (Miscellaneous, not classified) | C45: 7319 | D45: Medical Groups | F45: 8000-8059, 8082-8099,
A46: Automobile Dealerships | C46: 5511-5599 | D46: Photographic Studios | F46: 7221
A47: Amusement, Recreation, and Entertainment | C47: 7800-7999 | D47: Restaurants | F47: 5088-5899
A48: Hotels | C48: 7000-7099 | D48: Tax Return Preparation Services/ Misc. Personal Svcs | F48: 7291-7299
A49: Insurance Carriers/Brokers | C49: 6300-6499 | D49: Real Estate | F49: 6500-6799
A50: Jewelry Manufacturing | C50: 3911-3915 | D50: Religious Organizations (Admin. And Mgmt. staff only) | F50: 8661
A51: Legal | C51: 8100-8199 | D51: Watch, Clock and Jewelry Repair | F51: 7631
A52: Management Carve-out (any industry) | C52: 9999
A53: Ineligible Industries
A54: Associations and Trusts1 | C54: 8600-8660, 8662-8699, | D54: Religious Organizations (except Churches #8661) | F54: No SIC
A55: Beauty and Barber Shops | C55: 7231-7241 | D55: Private Households | F55: 8811
A56: International Affairs | C56: 9721 | D56: Partnerships | F56: No SIC
A57: Dental Offices, Dental Labs, and Medical Labs | C57: 8021, 8071, 8072 | D57: Seasonal Employees (Christmas/Part-time Help) | F57: No SIC
A58: Employment Agencies | C58: 7361-7363 | D58: Seasonal Employees (Agriculture) | F58: 0761-0783
A59: Groups with high turnover2 | C59: Varies | D59: Miscellaneous Services not classified elsewhere | F59: 8999
A60: Miscellaneous Business Services | C60: 7389
A61: Ineligible Industries Voluntary PPO
A62: All Industires are eligible
A63: 1 Management and administrative staff of associations and trusts are eligible at Level 2. Use SIC Code 9999.
A64: 2 A business has high turnover if 20% or more of the average number of its employees during the past 12 months were newly hired for reasons other than the growth of the business.

Sheet CoPower ONE HMO (Non-Voluntary)
A1: Available for groups with 2-99 enrolling employees.
A2: Better, Better Plus and Best plans are available to groups with 5-99 enrolling employees. | O2: Enter your Contribution % | R2: =CONCATENATE(B7,B8) -> Select your CA DHMO RegionStandard Life Amount | T2: Good | V2: Better | X2: Best
A3: This Employee Cost Worksheet is for Non-Voluntary CoPower ONE HMO Plans.
A4: Rates valid for groups with renewal dates 1/1/19 through 12/31/19. | G4: =IF(G8>99,"CoPower ONE plans are only available for groups with 2-99 eligible employees.","") ->  | R4: Single | T4: =VLOOKUP(AreaSIC_Selection,List_RateTable_HMO,2,FALSE) -> 0 | V4: =VLOOKUP(AreaSIC_Selection,List_RateTable_HMO,5,FALSE) -> 0 | X4: =VLOOKUP(AreaSIC_Selection,List_RateTable_HMO,8,FALSE) -> 0
A5: Plan Type | B5: Select your HMO plan type | F5: Enrolling Employees | R5: Two Party | T5: =VLOOKUP(AreaSIC_Selection,List_RateTable_HMO,3,FALSE) -> 0 | V5: =VLOOKUP(AreaSIC_Selection,List_RateTable_HMO,6,FALSE) -> 0 | X5: =VLOOKUP(AreaSIC_Selection,List_RateTable_HMO,9,FALSE) -> 0
A6: Eligible Employees | B6: Enter Number of Employees | D6: Number of Single | F6: 0 | G6: =IF(GroupSize>4,5,"2-4") -> 2-4 | H6: 1 | R6: Three Party+ | T6: =VLOOKUP(AreaSIC_Selection,List_RateTable_HMO,4,FALSE) -> 0 | V6: =VLOOKUP(AreaSIC_Selection,List_RateTable_HMO,7,FALSE) -> 0 | X6: =VLOOKUP(AreaSIC_Selection,List_RateTable_HMO,10,FALSE) -> 0
A7: Region | B7: Select your CA DHMO Region | D7: Number of Two Party | F7: 0 | G7: =SUM(F6+F7+F8) -> 0 | H7: =IF(SUM(G7)>1,"Yes","No") -> No | R7: Total Cost | T7: =SUM((T4*F6)+(T5*F7)+(T6*F8)) -> 0 | V7: =SUM((V4*F6)+(V5*F7)+(V6*F8)) -> 0 | X7: =SUM((X4*F6)+(X5*F7)+(X6*F8)) -> 0
A8: Life Amount | B8: Standard Life Amount | D8: Number of Three Party+ | F8: 0 | G8: =SUM(F6+F7+F8) -> 0 | H8: =IF(AND(SUM(G8)>4,HMO_EligibleEEs>4),"Yes","No") -> No | R8: 0
A9: Payroll Frequency | B9: Select your payroll frequency | G9: =IF(B5="CoPower ONE Good",IF(H7="Yes",,"Must have a minimum of 2 enrolled for Good plan"),) -> 0
A10: ER Contribution % (Employee) | B10: Enter Enrolling Employees | E10: =IF(B10="Enter your Contribution %",0,1-B10) ->  | F10: =IF(B9="weekly","52",IF(B9="Biweekly","26",IF(B9="2x Monthly","24",IF(B9="Monthly","12",0)))) -> 0 | G10: =IF(OR(B5="Select your HMO Plan Type",B5="CoPower ONE Good"),,IF(AND(H8="Yes",HMO_EligibleEEs>4),,"Must have a minimum of 5 enrolled for Better, Better Plus and Best plans")) -> 0
A11: ER Contribution % (Dependent) | B11: Enter Enrolling Employees | E11: =IF(B11="Enter your Contribution %",0,1-B11) -> 
A13: =IF(OR(AND(OR(HMO_EligibleEEs="Enter Number of Employees",HMO_EligibleEEs<10),OR(B8="Enhanced Life $50,000",B8="Enhanced Life $100,000",B8="Enhanced Life $150,000")),AND((SUM(G8)<10),OR(B8="Enhanced Life $50,000",B8="Enhanced Life $100,000",B8="Enhanced Life $150,000"))),"Enhanced Life is only available for CoPower ONE plans with 10+ employees.",) -> 0
A17: =IF(HMO_EligibleEEs="Enter Number of Employees","",IF(G8>HMO_EligibleEEs,"Enrolling Employees are greater than Eligible Employees",IF(NonVolHMOERContribution_Employee=1,IF(G8<>HMO_EligibleEEs,"100 % participation required for CoPower ONE Non-Voluntary HMO plan if employer contributes 100 % of employee premium",""),IF(G8<(0.75*HMO_EligibleEEs),"At least 75 % participation required for CoPower ONE Non-Voluntary HMO plan. Please change the number of eligible or enrolling employees.","")))) -> 
A19: =IF(OR(A17="100 % participation required for CoPower One Non-Voluntary HMO plan if employer contributes 100 % of employee premium",A17="At least 75 % participation required for CoPower ONE Non-Voluntary HMO plan. Please change the number of eligible or enrolling employees.",A17="Enrolling Employees are greater than Eligible Employees"),1,"") -> 
A20: CoPower ONE Employee Contribution Worksheet
A21: Company Name:
A22: Effective Date: | B22: Select your effective date
A25: Costs | C25: =IF($B$5="Select your HMO plan type","Select your HMO Plan Type",IF($B$5="CoPower ONE Good","CoPower ONE Good",IF($B$5="CoPower ONE Better","CoPower ONE Better",IF($B$5="CoPower ONE Better Plus","CoPower ONE Better Plus",IF($B$5="CoPower ONE Best","CoPower ONE Best","Select your HMO plan type"))))) -> Select your HMO Plan Type
C26: =IF(B9="Select your payroll frequency","Select your Payroll Frequency",IF(B9="Weekly","Per Weekly Pay Period",IF(B9="Biweekly","Per Biweekly Pay Period",IF(B9="2x Monthly","Per Pay Period (Twice a Month)",IF(B9="Monthly","Per Monthly Pay Period",0))))) -> Select your Payroll Frequency | G26: Monthly Premium
C27: Employee Portion | E27: Employer Portion | L27: Annual Dependent Cost | M27: Annual Premium | O27: Total
A28: Employee Only | C28: =IF(OR(AND(OR(HMO_EligibleEEs="Enter Number of Employees",HMO_EligibleEEs<10),OR(Life_HMO="Enhanced Life $50,000",Life_HMO="Enhanced Life $100,000",Life_HMO="Enhanced Life $150,000")),B9="select your payroll frequency",B11="Enter your Contribution %",NonVolHMOERContribution_Employee="Enter your Contribution %",A19=1),0,ROUND(((M28/$F$10)*$E$10),2)) -> 0 | E28: =IF(OR(AND(OR(HMO_EligibleEEs="Enter Number of Employees",HMO_EligibleEEs<10),OR(Life_HMO="Enhanced Life $50,000",Life_HMO="Enhanced Life $100,000",Life_HMO="Enhanced Life $150,000")),B9="select your payroll frequency",NonVolHMOERContribution_Employee="Enter your Contribution %",B11="Enter your Contribution %",A19=1),0,ROUND(((M28/$F$10)*NonVolHMOERContribution_Employee),2)) -> 0 | G28: =IF(OR($B$6="Enter Number of Employees",$B$7="Select your CA DHMO Region",G10="Must have a minimum of 5 enrolled for Better, Better Plus and Best plans",G9="Must have a minimum of 2 enrolled for Good plan",A13="Enhanced Life is only available for CoPower ONE plans with 10+ employees.",A19=1),0,IF($B$5="Select your HMO plan type",0,IF($B$5="CoPower ONE Good",T4,IF(OR($B$5="CoPower ONE Better",$B$5="CoPower ONE Better Plus"),V4,IF($B$5="CoPower ONE Best",X4,0))))) -> 0 | M28: =G28*12 -> 0 | O28: =IF($F$10=0,0,ROUNDDOWN(((M28/$F$10)),2)) -> 0
A29: Employee+1 | C29: =IF(OR($B$9="Select your payroll frequency",B10="Enter your Contribution %",B11="Enter your Contribution %",A19=1),0,ROUND($C$28+((L29/$F$10)*$E$11),2)) -> 0 | E29: =IF(OR(AND(OR(B6="Enter Number of Employees",B6<10),OR($B$8="Enhanced Life $50,000",$B$8="Enhanced Life $100,000",$B$8="Enhanced Life $150,000")),$B$9="select your payroll frequency",$B$10="Enter your Contribution %",$B$11="Enter your Contribution %",A19=1),0,ROUND(E28+((L29/$F$10)*NonVolHMOERContribution_Dependent),2)) -> 0 | G29: =IF(OR($B$6="Enter Number of Employees",$B$7="Select your CA DHMO Region",G10="Must have a minimum of 5 enrolled for Better, Better Plus and Best plans",G9="Must have a minimum of 2 enrolled for Good plan",A13="Enhanced Life is only available for CoPower ONE plans with 10+ employees.",A19=1),,IF($B$5="Select your HMO plan type",0,IF($B$5="CoPower ONE Good",T5,IF(OR($B$5="CoPower ONE Better",$B$5="CoPower ONE Better Plus"),V5,IF($B$5="CoPower ONE Best",X5,0))))) -> 0 | L29: =M29-M28 -> 0 | M29: =G29*12 -> 0 | O29: =IF($F$10=0,0,ROUNDDOWN(((M29/$F$10)),2)) -> 0
A30: Employee+2 or more | C30: =IF(OR($B$9="Select your payroll frequency",B10="Enter your Contribution %",B11="Enter your Contribution %",A19=1),0,ROUND(($C$28+((L30/$F$10)*$E$11)),2)) -> 0 | E30: =IF(OR(AND(OR(B6="Enter Number of Employees",B6<10),OR($B$8="Enhanced Life $50,000",$B$8="Enhanced Life $100,000",$B$8="Enhanced Life $150,000")),$B$9="select your payroll frequency",$B$10="Enter your Contribution %",$B$11="Enter your Contribution %",A19=1),0,ROUND(E28+((L30/$F$10)*NonVolHMOERContribution_Dependent),2)) -> 0 | G30: =IF(OR($B$6="Enter Number of Employees",$B$7="Select your CA DHMO Region",G10="Must have a minimum of 5 enrolled for Better, Better Plus and Best plans",G9="Must have a minimum of 2 enrolled for Good plan",A13="Enhanced Life is only available for CoPower ONE plans with 10+ employees.",A19=1),,IF($B$5="Select your HMO plan type",0,IF($B$5="CoPower ONE Good",T6,IF(OR($B$5="CoPower ONE Better",$B$5="CoPower ONE Better Plus"),V6,IF($B$5="CoPower ONE Best",X6,0))))) -> 0 | L30: =M30-M28 -> 0 | M30: =G30*12 -> 0 | O30: =IF($F$10=0,0,ROUNDDOWN(((M30/$F$10)),2)) -> 0
A34: Benefits | C34: =IF($B$5="Select your HMO plan type","Select your HMO Plan Type",IF($B$5="CoPower ONE Good","CoPower ONE Good",IF($B$5="CoPower ONE Better","CoPower ONE Better",IF($B$5="CoPower ONE Better Plus","CoPower ONE Better Plus",IF($B$5="CoPower ONE Best","CoPower ONE Best","Select your HMO plan type"))))) -> Select your HMO Plan Type
A35: DHMO Dental - Delta Dental | C35: DeltaCare USA
A36: Calendar Maximum | C36: =IF($B$5="Select your HMO plan type",0,"None") -> 0
A37: Deductible | C37: =IF($B$5="Select your HMO plan type",0,"None") -> 0
A38: Diagnostic & Preventive | C38: =IF($B$5="Select your HMO plan type",0,"Exams, x-rays, cleanings, and flouride treatments") -> 0 | G38: =IF($B$5="Select your HMO plan type",0,"No cost") -> 0
A39: Basic Restorative | C39: =IF($B$5="Select your HMO plan type",0,"Fillings (amalgan cost per surface)") -> 0 | G39: =IF($B$5="Select your HMO plan type",0,"No cost") -> 0
A40: Periodontics | C40: =IF($B$5="Select your HMO plan type",0,"Scaling and Root planing") -> 0 | G40: =IF($B$5="Select your HMO plan type",0,"$50 copay") -> 0
A41: Endodontics | C41: =IF($B$5="Select your HMO plan type",0,"Root canal – anterior (excluding final restoration) Root canal – molar (excluding final restoration)") -> 0 | G41: =IF($B$5="Select your HMO plan type",0,"$95 copay $335 copay") -> 0
A42: Oral Surgery | C42: =IF($B$5="Select your HMO plan type",0,"Extraction, erupted tooth or exposed root Surgical removal of erupted tooth requiring removal of bone or sectioning of tooth Removal of impacted tooth – completely boney") -> 0 | G42: =IF($B$5="Select your HMO plan type",0,"$5 copay $45 copay $95 copay") -> 0
A43: Prosthodontics | C43: =IF($B$5="Select your HMO plan type",0,"Crown – porcelain fused to high noble metal; full cast high noble metal Complete denture – maxillary Maxillary partial denture – resin base") -> 0 | G43: =IF($B$5="Select your HMO plan type",0,"$355 copay $285 copay $245 copay") -> 0
A44: Orthodontics | C44: =IF($B$5="Select your HMO plan type",0,"Child Adult") -> 0 | G44: =IF($B$5="Select your HMO plan type",0,"$1,900 copay $2,100 copay") -> 0
A46: Vision - Vision Service Plan | C46: In Network | D46: Out of Network | F46: Frequency
A47: Annual Copayment | C47: =IF(B5="Select your HMO plan type",0,IF(B5="CoPower ONE Good","$25 exam/$25 prescription glasses","$10 exam/$25 prescription glasses")) -> 0
A48: Eye Exam | C48: =IF($B$5="Select your HMO plan type",0,"Covered after copayment") -> 0 | D48: =IF($B$5="Select your HMO plan type",0,"Reimbursed up to $45") -> 0 | F48: Eye Exam | H48: =IF(B5="Select your HMO plan type",0,"12 months") -> 0
A49: Single-vision Lenses | C49: =IF($B$5="Select your HMO plan type",0,"Covered in full") -> 0 | D49: =IF($B$5="Select your HMO plan type",0,"Reimbursed up to $30") -> 0 | F49: Lenses | H49: =IF(B5="Select your HMO plan type",0,IF($B$5="CoPower ONE Good","24 months","12 months")) -> 0
A50: Bifocal Lenses | C50: =IF($B$5="Select your HMO plan type",0,"Covered in full") -> 0 | D50: =IF($B$5="Select your HMO plan type",0,"Reimbursed up to $50") -> 0
A51: Trifocal Lenses | C51: =IF($B$5="Select your HMO plan type",0,"Covered in full") -> 0 | D51: =IF($B$5="Select your HMO plan type",0,"Reimbursed up to $65") -> 0
A52: Frames | C52: =IF($B$5="Select your HMO plan type",0,"$150 allowance") -> 0 | D52: =IF($B$5="Select your HMO plan type",0,"Reimbursed up to $70") -> 0 | F52: Frames | H52: =IF(B5="Select your HMO plan type",0,IF($B$5="CoPower ONE Best","12 months","24 months")) -> 0
A53: Contact Lenses | C53: =IF($B$5="Select your HMO plan type",0,"$150 allowance") -> 0 | D53: =IF($B$5="Select your HMO plan type",0,"Reimbursed up to $105") -> 0 | F53: Contact Lenses (in lieu of lenses and a frame) | H53: =IF(B5="Select your HMO plan type",0,IF($B$5="CoPower ONE Good","24 months","12 months")) -> 0
A55: Life - UNUM
A56: Basic Group Term Life with AD&D and EAP | C56: =IF($B$5="Select your HMO plan type",0,IF($B$8="Standard Life Amount",IF($B$5="CoPower ONE Good","$15,000 policy",IF(OR($B$5="CoPower ONE Better",$B$5="CoPower ONE Better Plus"),"$20,000 policy",IF($B$5="CoPower ONE Best","$25,000 policy","0"))),IF($B$8="Enhanced Life $50,000","$50,000 policy",IF($B$8="Enhanced Life $100,000","$100,000 policy",IF($B$8="Enhanced Life $150,000","$150,000 policy",0))))) -> 0
A58: Contact your benefits representative should you have any questions.
A59: *Enter your contact information here*

Sheet CoPower One PPO Comparison (hidden)
A8: Company Information
A9: Company Name: | K9: =IF(J14="Yes",,"Must have a minimum of 2 enrolled for Good plan") -> Must have a minimum of 2 enrolled for Good plan
A10: Effective Date: | B10: Select your effective date | K10: =IF(J15="Yes",,"Must have a minimum of 5 enrolled for Better, Better Plus and Best plans") -> Must have a minimum of 5 enrolled for Better, Better Plus and Best plans
A12: Employees | B12: Select your group size
A13: Region | B13: Select your CA PPO Region | E13: Number of Single | G13: 0 | I13: =IF(GroupSize>4,5,"2-4") -> 2-4
A14: SIC Level | B14: Select your SIC Level | E14: Number of Two Party | G14: 0 | I14: =SUM(G13+G14+G15) -> 0 | J14: =IF(SUM(I14)>1,"Yes","No") -> No
A15: Life Amount1 | B15: Standard Life Amount | E15: Number of Three Party+ | G15: 0 | I15: =SUM(G13+G14+G15) -> 0 | J15: =IF(SUM(I15)>4,"Yes","No") -> No
A17: Cost Comparison
A19: =CONCATENATE(B13,B14,B15,I13) -> Select your CA PPO RegionSelect your SIC LevelStandard Life Amount2-4 | B19: =SUM(CPPPO_EECheck) -> 0 | C19: Good | E19: Better | G19: Better Plus | I19: Best
A21: Single | C21: =VLOOKUP(AreaSIC_Selection,List_RateTable_PPO,2,FALSE) -> 0 | E21: =VLOOKUP(AreaSIC_Selection,List_RateTable_PPO,5,FALSE) -> 0 | G21: =VLOOKUP(AreaSIC_Selection,List_RateTable_PPO,8,FALSE) -> 0 | I21: =VLOOKUP(AreaSIC_Selection,List_RateTable_PPO,11,FALSE) -> 0
A22: Two Party | C22: =VLOOKUP(AreaSIC_Selection,List_RateTable_PPO,3,FALSE) -> 0 | E22: =VLOOKUP(AreaSIC_Selection,List_RateTable_PPO,6,FALSE) -> 0 | G22: =VLOOKUP(AreaSIC_Selection,List_RateTable_PPO,9,FALSE) -> 0 | I22: =VLOOKUP(AreaSIC_Selection,List_RateTable_PPO,12,FALSE) -> 0
A23: Three Party+ | C23: =VLOOKUP(AreaSIC_Selection,List_RateTable_PPO,4,FALSE) -> 0 | E23: =VLOOKUP(AreaSIC_Selection,List_RateTable_PPO,7,FALSE) -> 0 | G23: =VLOOKUP(AreaSIC_Selection,List_RateTable_PPO,10,FALSE) -> 0 | I23: =VLOOKUP(AreaSIC_Selection,List_RateTable_PPO,13,FALSE) -> 0
A24: Total Cost | C24: =SUM((C21*G13)+(C22*G14)+(C23*G15)) -> 0 | E24: =SUM((E21*G13)+(E22*G14)+(E23*G15)) -> 0 | G24: =SUM((G21*G13)+(G22*G14)+(G23*G15)) -> 0 | I24: =SUM((I21*G13)+(I22*G14)+(I23*G15)) -> 0
A25: Percent Difference between Good, Better and Best | E25: =SUM(E24-C24)/C24 ->  | G25: =SUM(G24-E24)/C24 ->  | I25: =SUM(I24-E24)/E24 -> 
A26: Benefit Comparison
C28: Good | E28: Better | G28: Better Plus | I28: Best
C29: In Network | D29: Out of Network | E29: In Network | F29: Out of Network | G29: In Network | H29: Out of Network | I29: In Network | J29: Out of Network
A30: Dental - Delta Dental | C30: Delta Dental PPO2 | G30: Delta Dental PPO + Premier3
A31: Calendar Maximum | C31: $1,000 | D31: $750 | E31: $1,500 | F31: $1,250 | G31: $1,500 | H31: $1,250 | I31: $2,000 | J31: $1,500
A32: Deductible | C32: $50 | D32: $75 | E32: $50 | F32: $75 | G32: $50 | H32: $75 | I32: $50 | J32: $75
A33: Deductible Waived for Diagnostic & Preventive | C33: Yes | D33: No | E33: Yes | F33: No | G33: Yes | H33: No | I33: Yes
A34: Diagnostic and Preventive Services | C34: 100% | D34: 50% | E34: 100% | F34: 80% | G34: 100% | H34: 80% | I34: 100%
A35: Basic, Oral Surgery, Endodontics and Periodontics | C35: 80% | D35: 50% | E35: 80% | G35: 80% | I35: 80%
A36: Major Services | C36: 50% | E36: 50% | G36: 50% | I36: 50%
A37: Orthodontics-Children Only (Available to groups 5+ enrolled) | C37: Not available | E37: 50% lifetime max $1,000 | G37: 50% lifetime max $1,000 | I37: 50% lifetime max $1,000
A38: Vision - Vision Service Plan
A39: Annual Copayment | C39: $25 exam/$25 materials | E39: $10 exam/$25 materials | G39: $10 exam/$25 materials | I39: $10 exam/$25 materials
A40: Eye Exam | C40: Covered after copayment | D40: Reimbursed up to $45 | E40: Covered after copayment | F40: Reimbursed up to $45 | G40: Covered after copayment | H40: Reimbursed up to $45 | I40: Covered after copayment | J40: Reimbursed up to $45
A41: Single-vision Lenses | C41: Covered in full | D41: Reimbursed up to $30 | E41: Covered in full | F41: Reimbursed up to $30 | G41: Covered in full | H41: Reimbursed up to $30 | I41: Covered in full | J41: Reimbursed up to $30
A42: Bifocal Lenses | C42: Covered in full | D42: Reimbursed up to $50 | E42: Covered in full | F42: Reimbursed up to $50 | G42: Covered in full | H42: Reimbursed up to $50 | I42: Covered in full | J42: Reimbursed up to $50
A43: Trifocal Lenses | C43: Covered in full | D43: Reimbursed up to $65 | E43: Covered in full | F43: Reimbursed up to $65 | G43: Covered in full | H43: Reimbursed up to $65 | I43: Covered in full | J43: Reimbursed up to $65
A44: Frames | C44: $150 allowance | D44: Reimbursed up to $70 | E44: $150 allowance | F44: Reimbursed up to $70 | G44: $150 allowance | H44: Reimbursed up to $70 | I44: $150 allowance | J44: Reimbursed up to $70
A45: Contact Lenses | C45: $150 allowance | D45: Reimbursed up to $105 | E45: $150 allowance | F45: Reimbursed up to $105 | G45: $150 allowance | H45: Reimbursed up to $105 | I45: $150 allowance | J45: Reimbursed up to $105
A46: Vision-Frequency
A47: Eye Exam | C47: 12 months | E47: 12 months | G47: 12 months | I47: 12 months
A48: Lenses | C48: 24 months | E48: 12 months | G48: 12 months | I48: 12 months
A49: Frames | C49: 24 months | E49: 24 months | G49: 24 months | I49: 12 months
A50: Contact Lenses (in lieu of lenses and a frame) | C50: 24 months | E50: 12 months | G50: 12 months | I50: 12 months
C51: Good | E51: Better | G51: Better Plus | I51: Best
A52: Life - UNUM
A53: Basic Group Term Life with AD&D and EAP | C53: =IF($B$15="Standard Life Amount","$15,000 policy",$B$15) -> $15,000 policy | E53: =IF($B$15="Standard Life Amount","$20,000 policy",$B$15) -> $20,000 policy | G53: =IF($B$15="Standard Life Amount","$20,000 policy",$B$15) -> $20,000 policy | I53: =IF($B$15="Standard Life Amount","$25,000 policy",$B$15) -> $25,000 policy
A54: 1 Employers with 10 or more enrolling employees have the option of substituting the standard group term life policy amounts with either a $50,000, $100,000 or $150,000 policy for an additional charge.
A55: 2 Delta Dental PPO: All dentists (in- and out-of-network) are reimbursed at the lesser of the submitted charge or the PPO provider allowed fee.
A56: 3 Delta Dental PPO + Premier: PPO dentists are reimbursed at the lesser of the submitted charge or the PPO provider allowed fee. Delta Dental Premier dentists are reimbursed at the lesser of the submitted charge or the Premier provider allowed fee. Non-contracted dentists are reimbursed at the lesser of the submitted charge or the fee that satisfies the majority of dentists with the same training and geographical area.
A58: Presented by
A59: **Enter your contact information here.** | H59: License #
A60: This document is not meant to replace a quote and does not include all exclusions, limitations or program guidelines. While the information and rates provided here are believed to be accurate as of the print date, they are subject to change without notice. For the most up-to-date information, contact CoPower. CoPower ONE plans are not available to groups currently insured with UNUM.

Sheet CoPower ONE PPO (Non-Voluntary)
A1: Available for groups with 2-99 enrolling employees.
A2: Better, Better Plus and Best plans are available to groups with 5-99 enrolling employees. | T2: =CONCATENATE(B8,B9,B10,G8) -> Select your CA PPO RegionSelect your SIC LevelStandard Life Amount2-4 | U2: =SUM(PPO_EnrolledEEs) -> 0 | V2: Good | X2: Better | Z2: Better Plus | AB2: Best
A3: This Employee Cost Worksheet is for Non-Voluntary CoPower ONE PPO Plans.
A4: Rates valid for groups with renewal dates 1/1/19 through 12/31/19. | T4: Single | V4: =VLOOKUP(AreaSIC_Selection,List_RateTable_PPO,2,FALSE) -> 0 | X4: =VLOOKUP(AreaSIC_Selection,List_RateTable_PPO,5,FALSE) -> 0 | Z4: =VLOOKUP(AreaSIC_Selection,List_RateTable_PPO,8,FALSE) -> 0 | AB4: =VLOOKUP(AreaSIC_Selection,List_RateTable_PPO,11,FALSE) -> 0
T5: Two Party | V5: =VLOOKUP(AreaSIC_Selection,List_RateTable_PPO,3,FALSE) -> 0 | X5: =VLOOKUP(AreaSIC_Selection,List_RateTable_PPO,6,FALSE) -> 0 | Z5: =VLOOKUP(AreaSIC_Selection,List_RateTable_PPO,9,FALSE) -> 0 | AB5: =VLOOKUP(AreaSIC_Selection,List_RateTable_PPO,12,FALSE) -> 0
A6: Plan Type | B6: Select your PPO plan type | G6: =IF(G10>99,"Note: CoPower ONE plans are only available for groups with 2-99 enrolling employees","") ->  | T6: Three Party+ | V6: =VLOOKUP(AreaSIC_Selection,List_RateTable_PPO,4,FALSE) -> 0 | X6: =VLOOKUP(AreaSIC_Selection,List_RateTable_PPO,7,FALSE) -> 0 | Z6: =VLOOKUP(AreaSIC_Selection,List_RateTable_PPO,10,FALSE) -> 0 | AB6: =VLOOKUP(AreaSIC_Selection,List_RateTable_PPO,13,FALSE) -> 0
A7: Eligible Employees | B7: Enter Number of Employees | F7: Enrolling Employees | T7: Total Cost | V7: =SUM((V4*F8)+(V5*F9)+(V6*F10)) -> 0 | X7: =SUM((X4*F8)+(X5*F9)+(X6*F10)) -> 0 | Z7: =SUM((Z4*F8)+(Z5*F9)+(Z6*F10)) -> 0 | AB7: =SUM((AB4*F8)+(AB5*F9)+(AB6*F10)) -> 0
A8: Region | B8: Select your CA PPO Region | D8: Number of Single | F8: 0 | G8: =IF(GroupSize>4,5,"2-4") -> 2-4 | T8: Percent Difference between Good, Better and Best | X8: =SUM(X7-V7)/V7 ->  | Z8: =SUM(Z7-X7)/V7 ->  | AB8: =SUM(AB7-X7)/X7 -> 
A9: SIC Level | B9: Select your SIC Level | D9: Number of Two Party | F9: 0 | G9: =SUM(F8+F9+F10) -> 0 | H9: =IF(SUM(G9)>1,"Yes","No") -> No
A10: Life Amount | B10: Standard Life Amount | D10: Number of Three Party+ | F10: 0 | G10: =SUM(F8+F9+F10) -> 0 | H10: =IF(AND(SUM(G10)>4,PPO_EligibleEEs>4),"Yes","No") -> No
A11: Payroll Frequency | B11: Select your payroll frequency | G11: =IF(B6="CoPower ONE Good",IF(H9="Yes",,"Must have a minimum of 2 enrolled for Good plan"),) -> 0
A12: ER Contribution % (Employee) | B12: Enter Enrolling Employees | E12: =IF(B12="Enter your Contribution %",0,1-B12) ->  | F12: =IF(B11="weekly","52",IF(B11="Biweekly","26",IF(B11="2x Monthly","24",IF(B11="Monthly","12",0)))) -> 0 | G12: =IF(OR(B6="Select your PPO Plan Type",B6="CoPower ONE Good"),,IF(H10="Yes",,"Must have a minimum of 5 enrolled for Better, Better Plus and Best plans")) -> 0
A13: ER Contribution % (Dependent) | B13: Enter Enrolling Employees | E13: =IF(B13="Enter your Contribution %",0,1-B13) -> 
A16: =IF(OR(AND(OR(PPO_EligibleEEs="Enter Number of Employees",PPO_EligibleEEs<10),OR(B10="Enhanced Life $50,000",B10="Enhanced Life $100,000",B10="Enhanced Life $150,000")),AND(SUM(G10)<10,OR(B10="Enhanced Life $50,000",B10="Enhanced Life $100,000",B10="Enhanced Life $150,000"))),"Enhanced Life is only available for CoPower ONE plans with 10+ employees.",) -> 0
A19: =IF(PPO_EligibleEEs="Enter Number of Employees","",IF(G10>PPO_EligibleEEs,"Enrolling Employees are greater than Eligible Employees",IF(NonVolPPOERContribution_Employee=1,IF(G10<>PPO_EligibleEEs,"100 % participation required for CoPower ONE Non-Voluntary PPO plan if employer contributes 100 % of employee premium",""),IF(G10<(0.75*PPO_EligibleEEs),"At least 75 % participation required for CoPower ONE Non-Voluntary PPO plan. Please change the number of eligible or enrolling employees.","")))) -> 
A21: =IF(OR(A19="100 % participation required for CoPower One Non-Voluntary PPO Plan if employer contributes 100 % of employee premium",A19="At least 75 % participation required for CoPower ONE Non-Voluntary PPO plan. Please change the number of eligible or enrolling employees.",A19="Enrolling Employees are greater than Eligible Employees"),1,"") -> 
A22: CoPower ONE Employee Contribution Worksheet
A24: Company Name:
A25: Effective Date: | B25: Select your effective date
A29: Costs | C29: =IF($B$6="Select your PPO plan type","Select your PPO Plan Type",IF($B$6="CoPower ONE Good","CoPower ONE Good",IF($B$6="CoPower ONE Better","CoPower ONE Better",IF($B$6="CoPower ONE Better Plus","CoPower ONE Better Plus",IF($B$6="CoPower ONE Best","CoPower ONE Best","Select your PPO plan type"))))) -> Select your PPO Plan Type
C30: =IF(B11="Select your payroll frequency","Select your Payroll Frequency",IF(B11="Weekly","Per Weekly Pay Period",IF(B11="Biweekly","Per Biweekly Pay Period",IF(B11="2x Monthly","Per Pay Period (Twice a Month)",IF(B11="Monthly","Per Monthly Pay Period",0))))) -> Select your Payroll Frequency | G30: Monthly Premium
C31: Employee Portion | E31: Employer Portion | K31: Annual Dependent Cost | L31: Annual Premium | N31: Total
A32: Employee Only | C32: =IF(OR(AND(OR($B$7="Enter Number of Employees",$B$7="2-9 Employees"),OR($B$10="Enhanced Life $50,000",$B$10="Enhanced Life $100,000",$B$10="Enhanced Life $150,000")),$B$11="select your payroll frequency",B12="Enter your Contribution %",B13="Enter your Contribution %",A21=1),0,ROUND(((L32/$F$12)*$E$12),2)) -> 0 | E32: =IF(OR(AND(OR($B$7="Enter Number of Employees",$B$7="2-9 Employees"),OR($B$10="Enhanced Life $50,000",$B$10="Enhanced Life $100,000",$B$10="Enhanced Life $150,000")),$B$11="select your payroll frequency",$B$12="Enter your Contribution %",B13="Enter your Contribution %",A21=1),0,ROUND(((L32/$F$12)*NonVolPPOERContribution_Employee),2)) -> 0 | G32: =IF(OR($B$7="Enter Number of Employees",$B$8="Select your CA PPO Region",G12="Must have a minimum of 5 enrolled for Better, Better Plus and Best plans",G11="Must have a minimum of 2 enrolled for Good plan",A16="Enhanced Life is only available for CoPower ONE plans with 10+ employees.",A21=1),,IF($B$6="Select your PPO plan type",0,IF($B$6="CoPower ONE Good",V4,IF($B$6="CoPower ONE Better",X4,IF($B$6="CoPower ONE Better Plus",Z4,IF($B$6="CoPower ONE Best",AB4,0)))))) -> 0 | L32: =G32*12 -> 0 | N32: =IF($F$12=0,0,ROUND(((L32/$F$12)),2)) -> 0
A33: Employee+1 | C33: =IF(OR($B$11="Select your payroll frequency",B12="Enter your Contribution %",B13="Enter your Contribution %",A21=1),0,ROUND($C$32+((K33/$F$12)*$E$13),2)) -> 0 | E33: =IF(OR(AND(OR($B$7="Enter Number of Employees",$B$7="2-9 Employees",A21=1),OR($B$10="Enhanced Life $50,000",$B$10="Enhanced Life $100,000",$B$10="Enhanced Life $150,000")),$B$11="select your payroll frequency",$B$12="Enter your Contribution %",$B$13="Enter your Contribution %"),0,ROUND($E$32+((K33/$F$12)*B13),2)) -> 0 | G33: =IF(OR($B$7="Enter Number of Employees",$B$8="Select your CA PPO Region",G12="Must have a minimum of 5 enrolled for Better, Better Plus and Best plans",G11="Must have a minimum of 2 enrolled for Good plan",A16="Enhanced Life is only available for CoPower ONE plans with 10+ employees.",A21=1),,IF($B$6="Select your PPO plan type",0,IF($B$6="CoPower ONE Good",V5,IF($B$6="CoPower ONE Better",X5,IF($B$6="CoPower ONE Better Plus",Z5,IF($B$6="CoPower ONE Best",AB5,0)))))) -> 0 | K33: =L33-L32 -> 0 | L33: =G33*12 -> 0 | N33: =IF($F$12=0,0,ROUND(((L33/$F$12)),2)) -> 0
A34: Employee+2 or more | C34: =IF(OR($B$11="Select your payroll frequency",B12="Enter your Contribution %",B13="Enter your Contribution %",A21=1),0,ROUND($C$32+((K34/$F$12)*$E$13),2)) -> 0 | E34: =IF(OR(AND(OR($B$7="Enter Number of Employees",$B$7="2-9 Employees",A21=1),OR($B$10="Enhanced Life $50,000",$B$10="Enhanced Life $100,000",$B$10="Enhanced Life $150,000")),$B$11="select your payroll frequency",$B$12="Enter your Contribution %",$B$13="Enter your Contribution %"),0,ROUND($E$32+((K34/$F$12)*B13),2)) -> 0 | G34: =IF(OR($B$7="Enter Number of Employees",$B$8="Select your CA PPO Region",G12="Must have a minimum of 5 enrolled for Better, Better Plus and Best plans",G11="Must have a minimum of 2 enrolled for Good plan",A16="Enhanced Life is only available for CoPower ONE plans with 10+ employees.",A21=1),,IF($B$6="Select your PPO plan type",0,IF($B$6="CoPower ONE Good",V6,IF($B$6="CoPower ONE Better",X6,IF($B$6="CoPower ONE Better Plus",Z6,IF($B$6="CoPower ONE Best",AB6,0)))))) -> 0 | K34: =L34-L32 -> 0 | L34: =G34*12 -> 0 | N34: =IF($F$12=0,0,ROUND(((L34/$F$12)),2)) -> 0
A38: Benefits | C38: =IF($B$6="Select your PPO plan type","Select your PPO Plan Type",IF($B$6="CoPower ONE Good","CoPower ONE Good",IF($B$6="CoPower ONE Better","CoPower ONE Better",IF($B$6="CoPower ONE Better Plus","CoPower ONE Better Plus",IF($B$6="CoPower ONE Best","CoPower ONE Best","Select your PPO plan type"))))) -> Select your PPO Plan Type
C39: PPO Dentists | D39: Non-PPO Dentists
A40: Dental - Delta Dental | C40: =IF($B$6="Select your PPO plan type",0,IF(OR($B$6="CoPower ONE Good",$B$6="CoPower ONE Better"),"Delta Dental PPO*","Delta Dental PPO + Premier*")) -> 0
A41: Calendar Maximum | C41: =IF($B$6="CoPower ONE Good","$1,000",IF(OR($B$6="CoPower ONE Better",$B$6="CoPower ONE Better Plus"),"$1,500",IF($B$6="CoPower ONE Best","$2,000",0))) -> 0 | D41: =IF($B$6="CoPower ONE Good","$750",IF(OR($B$6="CoPower ONE Better",$B$6="CoPower ONE Better Plus"),"$1,250",IF($B$6="CoPower ONE Best","$1,500",0))) -> 0
A42: Deductible | C42: =IF($B$6="Select your PPO plan type",0,"$50") -> 0 | D42: =IF($B$6="Select your PPO plan type",0,"$75") -> 0
A43: Deductible Waived for Diagnostic & Preventive | C43: =IF($B$6="Select your PPO plan type",0,"Yes") -> 0 | D43: =IF($B$6="Select your PPO plan type",0,IF(B6="CoPower ONE Best","Yes","No")) -> 0
A44: Diagnostic and Preventive Services | C44: =IF($B$6="Select your PPO plan type",0,"100%") -> 0 | D44: =IF($B$6="CoPower ONE Good","50%",IF(OR($B$6="CoPower ONE Better",$B$6="CoPower ONE Better Plus"),"80%",IF($B$6="CoPower ONE Best","100%",0))) -> 0
A45: Basic, Oral Surgery, Endodontics and Periodontics | C45: =IF($B$6="Select your PPO plan type",0,"80%") -> 0 | D45: =IF($B$6="Select your PPO plan type",0,IF($B$6="CoPower ONE Good","50%","80%")) -> 0
A46: Major Services | C46: =IF($B$6="Select your PPO plan type",0,"50%") -> 0 | D46: =IF($B$6="Select your PPO plan type",0,"$50") -> 0
A47: Orthodontics-Children Only (Available to groups 5+ enrolled) | C47: =IF($B$6="Select your PPO plan type",0,IF($B$6="CoPower ONE Good","Not available","50% lifetime max $1,000")) -> 0 | D47: =IF($B$6="Select your PPO plan type",0,IF($B$6="CoPower ONE Good","50%","80%")) -> 0
A48: =IF($B$6="Select your PPO plan type",0,IF($C$40="Delta Dental PPO*","*Delta Dental PPO: All dentists (in- and out-of-network) are reimbursed at the lesser of the submitted charge or the PPO provider allowed fee.",0)) -> 0 | K48: *Delta Dental PPO + Premier: PPO dentists are reimbursed at the lesser of the submitted charge or the PPO provider allowed fee. Delta Dental Premier dentists are reimbursed at the lesser of the submitted charge or the Premier provider allowed fee. Non-contracted dentists are reimbursed at the lesser of the submitted charge or the fee that satisfies the majority of dentists with the same training and geographical area.
A49: =IF($B$6="Select your PPO plan type",0,IF($C$40="Delta Dental PPO + Premier*",K48,0)) -> 0
A51: Vision - Vision Service Plan | C51: In Network | D51: Out of Network | F51: Frequency
A52: Annual Copayment | C52: =IF(B6="Select your PPO plan type",0,IF(B6="CoPower ONE Good","$25 exam/$25 prescription glasses","$10 exam/$25 prescription glasses")) -> 0
A53: Eye Exam | C53: =IF($B$6="Select your PPO plan type",0,"Covered after copayment") -> 0 | D53: =IF($B$6="Select your PPO plan type",0,"Reimbursed up to $45") -> 0 | F53: Eye Exam | H53: =IF(B6="Select your PPO plan type",0,"12 months") -> 0
A54: Single-vision Lenses | C54: =IF($B$6="Select your PPO plan type",0,"Covered in full") -> 0 | D54: =IF($B$6="Select your PPO plan type",0,"Reimbursed up to $30") -> 0 | F54: Lenses | H54: =IF(B6="Select your PPO plan type",0,IF($B$6="CoPower ONE Good","24 months","12 months")) -> 0
A55: Bifocal Lenses | C55: =IF($B$6="Select your PPO plan type",0,"Covered in full") -> 0 | D55: =IF($B$6="Select your PPO plan type",0,"Reimbursed up to $50") -> 0
A56: Trifocal Lenses | C56: =IF($B$6="Select your PPO plan type",0,"Covered in full") -> 0 | D56: =IF($B$6="Select your PPO plan type",0,"Reimbursed up to $65") -> 0
A57: Frames | C57: =IF($B$6="Select your PPO plan type",0,"$150 allowance") -> 0 | D57: =IF($B$6="Select your PPO plan type",0,"Reimbursed up to $70") -> 0 | F57: Frames | H57: =IF(B6="Select your PPO plan type",0,IF($B$6="CoPower ONE Best","12 months","24 months")) -> 0
A58: Contact Lenses | C58: =IF($B$6="Select your PPO plan type",0,"$150 allowance") -> 0 | D58: =IF($B$6="Select your PPO plan type",0,"Reimbursed up to $105") -> 0 | F58: Contact Lenses (in lieu of lenses and a frame) | H58: =IF(B6="Select your PPO plan type",0,IF($B$6="CoPower ONE Good","24 months","12 months")) -> 0
A60: Life - UNUM
A61: Basic Group Term Life with AD&D and EAP | C61: =IF($B$6="Select your PPO plan type",0,IF($B$10="Standard Life Amount",IF($B$6="CoPower ONE Good","$15,000 policy",IF(OR($B$6="CoPower ONE Better",$B$6="CoPower ONE Better Plus"),"$20,000 policy",IF($B$6="CoPower ONE Best","$25,000 policy","0"))),IF($B$10="Enhanced Life $50,000","$50,000 policy",IF($B$10="Enhanced Life $100,000","$100,000 policy",IF($B$10="Enhanced Life $150,000","$150,000 policy",0))))) -> 0
A63: Contact your benefits representative should you have any questions.
A64: *Enter your contact information here*

Sheet CoPower ONE HMO (Voluntary)
A1: Available for groups with 2-99 enrolling employees.
A2: This Employee Cost Worksheet is for Voluntary CoPower ONE HMO Plans. | E2: =IF(B9="Enter your Contribution %",0,1-B9) -> 0 | F2: =IF(B8="weekly","52",IF(B8="Biweekly","26",IF(B8="2x Monthly","24",IF(B8="Monthly","12",0)))) -> 0 | H2: =IF(J9="Yes",,"Must have a minimum of 2 enrolled for CoPower ONE HMO Voluntary plans") -> Must have a minimum of 2 enrolled for CoPower ONE HMO Voluntary plans | P2: Cost Comparison
A3: Rates valid for groups with renewal dates 1/1/19 through 12/31/19. | E3: =IF(B10="Enter your Contribution %",0,1-B10) -> 0 | Q3: =SUM(CPPPO_EECheck) -> 0 | R3: Regions 1 + 2 | S3: Region 3 | T3: Region 4 | U3: Region 5
A5: Plan Type | B5: CoPower ONE Voluntary (HMO) | I5: =IF(GroupSize>4,5,"2-4") -> 2-4
A6: Eligible Employees | B6: Enter Number of Employees
A7: Region | B7: Select your CA DHMO Region | G7: Enrolling Employees
A8: Payroll Frequency | B8: Select your payroll frequency | E8: Number of Single | G8: 0 | I8: =SUM(G8+G9+G10) -> 0 | J8: =IF(SUM(I8)>1,"Yes","No") -> No | P8: Single | R8: 27 | S8: 30 | T8: 31 | U8: 77
A9: ER Contribution % (Employee) | B9: Enter your Contribution % | E9: Number of Two Party | G9: 0 | I9: =SUM(G8+G9+G10) -> 0 | J9: =IF(AND(SUM(I9)>1,HMOVOL_EligibleEEs>1),"Yes","No") -> No | P9: Two Party | R9: 42 | S9: 46 | T9: 49 | U9: 118
A10: ER Contribution % (Dependent) | B10: Enter your Contribution % | E10: Number of Three Party+ | G10: 0 | H10: =G10+G9+EECount_PPO_Single -> 0 | P10: Three Party+ | R10: 66 | S10: 72 | T10: 76 | U10: 179
F11: 0
F12: 0
A14: =IF(HMOVOL_EligibleEEs="Enter Number of Employees","",IF(H10>HMOVOL_EligibleEEs,"Enrolling Employees are greater than Eligible Employees",IF(H10<(0.75*HMOVOL_EligibleEEs),"At least 75 % participation required for CoPower ONE Voluntary HMO plans. Please change the number of eligible or enrolling employees.",""))) -> 
A17: =IF(OR(A14="Enrolling Employees are greater than Eligible Employees", A14="At least 75 % participation required for CoPower ONE Voluntary HMO plans. Please change the number of eligible or enrolling employees.",),1,"") -> 
A18: CoPower ONE Employee Contribution Worksheet
A20: Company Name:
A21: Effective Date: | B21: Select your effective date
A23: Costs | C23: CoPower ONE Voluntary HMO
C24: =IF(B8="Select your payroll frequency","Select your Payroll Frequency",IF(B8="Weekly","Per Weekly Pay Period",IF(B8="Biweekly","Per Biweekly Pay Period",IF(B8="2x Monthly","Per Pay Period (Twice a Month)",IF(B8="Monthly","Per Monthly Pay Period",""))))) -> Select your Payroll Frequency | G24: Monthly Premium
C25: Employee Portion | E25: Employer Portion | P25: Annual Dependent Cost | Q25: Annual Premium | S25: Total
A26: Employee Only | C26: =IF(OR(B8="select your payroll frequency",B10="Enter your Contribution %",A17=1),0,ROUND((Q26/F2)*E2,2)) -> 0 | E26: =IF(OR(B9="Enter your Contribution %",B10="Enter your Contribution %",B8="Select your payroll frequency",A17=1),,ROUND((Q26/F2)*B9,2)) -> 0 | G26: =IF(OR(HMOVOL_EligibleEEs="Enter Number of Employees",VolHMO_Region="Select your CA DHMO Region",A17=1,J9="No"),0,IF(VolHMO_Region="Region 1 & 2",R8,IF(VolHMO_Region="Region 3",S8,IF(VolHMO_Region="Region 4",T8,IF(VolHMO_Region="Region 5",U8,"0"))))) -> 0 | Q26: =G26*12 -> 0 | S26: =IF(F2=0,0,ROUNDDOWN(((Q26/F2)),2)) -> 0
A27: Employee+1 | C27: =IF(OR(B8="Select your payroll frequency",B9="Enter your Contribution %",B10="Enter your Contribution %"),0,ROUND($C$26+((P27/F2)*$E$3),2)) -> 0 | E27: =IF(OR(B9="Enter your Contribution %",B10="Enter your Contribution %",B8="Select your payroll frequency",A17=1),,ROUND(E26+((P27/F2)*B10),2)) -> 0 | G27: =IF(OR(HMOVOL_EligibleEEs="Enter Number of Employees",VolHMO_Region="Select your CA DHMO Region",A17=1,J9="No"),0,IF(VolHMO_Region="Region 1 & 2",R9,IF(VolHMO_Region="Region 3",S9,IF(VolHMO_Region="Region 4",T9,IF(VolHMO_Region="Region 5",U9,"0"))))) -> 0 | P27: =Q27-Q26 -> 0 | Q27: =G27*12 -> 0 | S27: =IF(F2=0,0,ROUNDDOWN(((Q27/F2)),2)) -> 0
A28: Employee+2 or more | C28: =IF(OR(B8="Select your payroll frequency",B9="Enter your Contribution %",B10="Enter your Contribution %"),0,ROUND($C$26+((P28/F2)*$E$3),2)) -> 0 | E28: =IF(OR(B9="Enter your Contribution %",B10="Enter your Contribution %",B8="Select your payroll frequency",A17=1),,ROUND(E26+((P28/F2)*B10),2)) -> 0 | G28: =IF(OR(HMOVOL_EligibleEEs="Enter Number of Employees",VolHMO_Region="Select your CA DHMO Region",A17=1,J9="No"),0,IF(VolHMO_Region="Region 1 & 2",R10,IF(VolHMO_Region="Region 3",S10,IF(VolHMO_Region="Region 4",T10,IF(VolHMO_Region="Region 5",U10,"0"))))) -> 0 | P28: =Q28-Q26 -> 0 | Q28: =G28*12 -> 0 | S28: =IF(F2=0,0,ROUNDDOWN(((Q28/F2)),2)) -> 0
A31: Benefits | C31: CoPower ONE Voluntary HMO
A32: DHMO Dental - Delta Dental | C32: DeltaCare USA
A33: Calendar Maximum | C33: None
A34: Deductible | C34: None
A35: Diagnostic & Preventive | C35: Exams, x-rays, cleanings, and flouride treatments | G35: No cost
A36: Basic Restorative | C36: Fillings (amalgan cost per surface) | G36: No cost
A37: Periodontics | C37: Scaling and Root planing | G37: $50 copay
A38: Endodontics | C38: Root canal – anterior (excluding final restoration) Root canal – molar (excluding final restoration) | G38: $95 copay $335 copay
A39: Oral Surgery | C39: Extraction, erupted tooth or exposed root Surgical removal of erupted tooth requiring removal of bone or sectioning of tooth Removal of impacted tooth – completely boney | G39: $5 copay $45 copay $95 copay
A40: Prosthodontics | C40: Crown – porcelain fused to high noble metal; full cast high noble metal Complete denture – maxillary Maxillary partial denture – resin base | G40: $355 copay $285 copay $245 copay
A41: Orthodontics | C41: Child Adult | G41: $1,900 copay $2,100 copay
A45: Vision - Vision Service Plan | C45: In Network | D45: Out of Network | F45: Frequency
A46: Annual Copayment | C46: $10 exam/$25 prescription glasses
A47: Eye Exam | C47: Covered after copayment | D47: Reimbursed up to $45 | F47: Eye Exam | H47: 12 months
A48: Single-vision Lenses | C48: Covered in full | D48: Reimbursed up to $30 | F48: Lenses | H48: 12 months
A49: Bifocal Lenses | C49: Covered in full | D49: Reimbursed up to $50
A50: Trifocal Lenses | C50: Covered in full | D50: Reimbursed up to $65
A51: Frames | C51: $150 allowance | D51: Reimbursed up to $70 | F51: Frames | H51: 24 months
A52: Contact Lenses | C52: $150 allowance | D52: Reimbursed up to $105 | F52: Contact Lenses (in lieu of lenses and a frame) | H52: 12 months
A54: Contact your benefits representative should you have any questions.
A55: *Enter your contact information here*

Sheet CoPower ONE PPO (Voluntary)
A1: Available for groups with 5-99 enrolling employees.
A2: This Employee Cost Worksheet is for Voluntary CoPower ONE PPO Plans. | E2: =IF(B8="Enter your Contribution %",0,1-B8) -> 0 | F2: =IF(B7="weekly","52",IF(B7="Biweekly","26",IF(B7="2x Monthly","24",IF(B7="Monthly","12",0)))) -> 0 | H2: =IF(J8="Yes",,"Must have a minimum of 5 enrolled for CoPower ONE PPO Voluntary plans") -> Must have a minimum of 5 enrolled for CoPower ONE PPO Voluntary plans | P2: Cost Comparison
A3: Rates valid for groups with renewal dates 1/1/19 through 12/31/19. | E3: =IF(B9="Enter your Contribution %",0,1-B9) -> 0 | Q3: =SUM(CPPPO_EECheck) -> 0 | R3: With Ortho | T3: W/O Ortho
A5: Plan Type | B5: Select your Voluntary PPO plan type | I5: =IF(GroupSize>4,5,"2-4") -> 2-4
A6: Eligible Employees | B6: Enter Number of Employees | G6: Enrolling Employees
A7: Payroll Frequency | B7: Select your payroll frequency | E7: Number of Single | G7: 0 | I7: =SUM(G7+G8+G9) -> 0 | J7: =IF(SUM(I7)>1,"Yes","No") -> No | P7: Single | R7: 60 | T7: 60
A8: ER Contribution % (Employee) | B8: Enter your Contribution % | E8: Number of Two Party | G8: 0 | I8: =SUM(G7+G8+G9) -> 0 | J8: =IF(AND(SUM(I8)>4,PPOVOL_EligibleEEs>4),"Yes","No") -> No | P8: Two Party | R8: 123 | T8: 112
A9: ER Contribution % (Dependent) | B9: Enter your Contribution % | E9: Number of Three Party+ | G9: 0 | H9: =G9+G8+EECount_PPO_Single -> 0 | P9: Three Party+ | R9: 188 | T9: 172
F10: 0
F11: 0
A13: =IF(PPOVOL_EligibleEEs="Enter Number of Employees","",IF(H9>PPOVOL_EligibleEEs,"Enrolling Employees are greater than Eligible Employees",IF(H9<(0.75*PPOVOL_EligibleEEs),"At least 75 % participation required for CoPower ONE Voluntary PPO plans. Please change the number of eligible or enrolling employees.",""))) -> 
A16: =IF(OR(A13="At least 75 % participation required for CoPower One Voluntary PPO Plans. Please change the number of eligible or enrolling employees.",A13="Enrolling Employees are greater than Eligible Employees"),1,"") -> 
A17: CoPower ONE Employee Contribution Worksheet
A19: Company Name:
A20: Effective Date: | B20: Select your effective date
A22: Costs | C22: CoPower ONE Voluntary PPO
C23: =IF(B7="Select your payroll frequency","Select your Payroll Frequency",IF(B7="Weekly","Per Weekly Pay Period",IF(B7="Biweekly","Per Biweekly Pay Period",IF(B7="2x Monthly","Per Pay Period (Twice a Month)",IF(B7="Monthly","Per Monthly Pay Period",""))))) -> Select your Payroll Frequency | G23: Monthly Premium
C24: Employee Portion | E24: Employer Portion | P24: Annual Dependent Cost | Q24: Annual Premium | S24: Total
A25: Employee Only | C25: =IF(OR(B8="Enter your Contribution %",B7="Select your payroll frequency",B9="Enter your Contribution %"),0,ROUND((Q25/F2)*$E$2,2)) -> 0 | E25: =IF(OR(B8="Enter your Contribution %",B7="Select your payroll frequency",B9="Enter your Contribution %"),0,ROUND((Q25/F2)*B8,2)) -> 0 | G25: =IF(OR($B$5="Select your Voluntary PPO plan type",$I$5="2-4",A16=1),0,IF($B$5="CoPower ONE Voluntary (With Ortho)",R7,IF($B$5="CoPower ONE Voluntary (Without Ortho)",T7,0))) -> 0 | Q25: =G25*12 -> 0 | S25: =IF(F2=0,0,ROUND(((Q25/F2)),2)) -> 0
A26: Employee+1 | C26: =IF(OR(B7="Select your payroll frequency",B8="Enter your Contribution %",B9="Enter your Contribution %"),0,ROUND($C$25+((P26/F2)*$E$3),2)) -> 0 | E26: =IF(OR(B8="Enter your Contribution %",B9="Enter your Contribution %",B7="Select your payroll frequency"),0,ROUND(E25+((P26/F2)*B9),2)) -> 0 | G26: =IF(OR($B$5="Select your Voluntary PPO plan type",$I$5="2-4",A16=1),0,IF($B$5="CoPower ONE Voluntary (With Ortho)",R8,IF($B$5="CoPower ONE Voluntary (Without Ortho)",T8,0))) -> 0 | P26: =Q26-Q25 -> 0 | Q26: =G26*12 -> 0 | S26: =IF(F2=0,0,ROUND(((Q26/F2)),2)) -> 0
A27: Employee+2 or more | C27: =IF(OR(B7="Select your payroll frequency",B8="Enter your Contribution %",B9="Enter your Contribution %"),0,ROUND($C$25+((P27/F2)*$E$3),2)) -> 0 | E27: =IF(OR(B8="Enter your Contribution %",B9="Enter your Contribution %",B7="Select your payroll frequency"),0,ROUND(E25+((P27/F2)*B9),2)) -> 0 | G27: =IF(OR($B$5="Select your Voluntary PPO plan type",$I$5="2-4",A16=1),0,IF($B$5="CoPower ONE Voluntary (With Ortho)",R9,IF($B$5="CoPower ONE Voluntary (Without Ortho)",T9,0))) -> 0 | P27: =Q27-Q25 -> 0 | Q27: =G27*12 -> 0 | S27: =IF(F2=0,0,ROUND(((Q27/F2)),2)) -> 0
A30: Benefits | C30: CoPower ONE Voluntary PPO
C31: PPO Dentists | D31: Non-PPO Dentists
A32: Dental - Delta Dental | C32: Delta Dental PPO*
A33: Calendar Year Max (per patient) | C33: =IF($B$5="Select your Voluntary PPO plan type",0,"$1,500") -> 0 | D33: =IF($B$5="Select your Voluntary PPO plan type",0,"$1,250") -> 0
A34: Calendar Year Deductible (per patient) | C34: =IF($B$5="Select your Voluntary PPO plan type",0,"$50") -> 0 | D34: =IF($B$5="Select your Voluntary PPO plan type",0,"$75") -> 0
A35: Deductible Waived for Diagnostic & Preventive | C35: =IF($B$5="Select your Voluntary PPO plan type",0,"Yes") -> 0 | D35: =IF($B$5="Select your Voluntary PPO plan type",0,"No") -> 0
A36: Diagnostic and Preventive Services | C36: =IF($B$5="Select your Voluntary PPO plan type",0,"100%") -> 0 | D36: =IF($B$5="Select your Voluntary PPO plan type",0,"80%") -> 0 | E36: First 12 Months
A37: Basic, Oral Surgery, Endodontics and Periodontics | C37: =IF($B$5="Select your Voluntary PPO plan type",0,"Sealants, Simple Restorations, & Simple Extractions: 80%") -> 0
C38: =IF($B$5="Select your Voluntary PPO plan type",0,"Oral Surgery/Endodontics/Periodontics: 50%") -> 0 | E38: Second 12 Months
A39: Major Services | C39: =IF($B$5="Select your Voluntary PPO plan type",0,"50%") -> 0 | D39: =IF($B$5="Select your PPO plan type",0,"$50") -> $50
A40: Orthodontics-Children Only (Available to groups 5+ enrolled) | C40: =IF($B$5="Select your Voluntary PPO plan type",0,IF($B$5="CoPower ONE Voluntary (Without Ortho)","Not available","50% lifetime max $1,000")) -> 0 | D40: =IF($B$5="Select your PPO plan type",0,IF($B$5="CoPower ONE Good","50%","80%")) -> 80%
A42: *Delta Dental PPO: All dentists (in- and out-of-network) are reimbursed at the lesser of the submitted charge or the PPO provider allowed fee.
A44: Vision - Vision Service Plan | C44: In Network | D44: Out of Network | F44: Frequency
A45: Annual Copayment | C45: =IF(B5="Select your Voluntary PPO plan type",0,"$10 exam/$25 prescription glasses") -> 0
A46: Eye Exam | C46: =IF($B$5="Select your Voluntary PPO plan type",0,"Covered after copayment") -> 0 | D46: =IF($B$5="Select your Voluntary PPO plan type",0,"Reimbursed up to $45") -> 0 | F46: Eye Exam | H46: =IF(B5="Select your Voluntary PPO plan type",0,"12 months") -> 0
A47: Single-vision Lenses | C47: =IF($B$5="Select your Voluntary PPO plan type",0,"Covered in full") -> 0 | D47: =IF($B$5="Select your Voluntary PPO plan type",0,"Reimbursed up to $30") -> 0 | F47: Lenses | H47: =IF(B5="Select your Voluntary PPO plan type",0,"12 months") -> 0
A48: Bifocal Lenses | C48: =IF($B$5="Select your Voluntary PPO plan type",0,"Covered in full") -> 0 | D48: =IF($B$5="Select your Voluntary PPO plan type",0,"Reimbursed up to $50") -> 0
A49: Trifocal Lenses | C49: =IF($B$5="Select your Voluntary PPO plan type",0,"Covered in full") -> 0 | D49: =IF($B$5="Select your Voluntary PPO plan type",0,"Reimbursed up to $65") -> 0
A50: Frames | C50: =IF($B$5="Select your Voluntary PPO plan type",0,"$150 allowance") -> 0 | D50: =IF($B$5="Select your Voluntary PPO plan type",0,"Reimbursed up to $70") -> 0 | F50: Frames | H50: =IF(B5="Select your Voluntary PPO plan type",0,"24 months") -> 0
A51: Contact Lenses | C51: =IF($B$5="Select your Voluntary PPO plan type",0,"$150 allowance") -> 0 | D51: =IF($B$5="Select your Voluntary PPO plan type",0,"Reimbursed up to $105") -> 0 | F51: Contact Lenses (in lieu of lenses and a frame) | H51: =IF(B5="Select your Voluntary PPO plan type",0,"12 months") -> 0
A53: Contact your benefits representative should you have any questions.
A54: *Enter your contact information here*

Sheet Lists (hidden)
A1: List_Area_PPO | B1: List_SIC | D1: List_RateTable_PPO | E1: GOOD | H1: BETTER | K1: BETTER PLUS | N1: BEST
A2: Select your CA PPO Region | B2: Select your SIC Level | D2: Region 21Standard Life Amount5 | E2: 46 | F2: 85 | G2: 128 | H2: 57 | I2: 108 | J2: 178 | K2: 63 | L2: 118 | M2: 197 | N2: 78 | O2: 146 | P2: 239
A3: Region 1 | B3: 1 | D3: Region 22Standard Life Amount5 | E3: 53 | F3: 98 | G3: 148 | H3: 66 | I3: 124 | J3: 205 | K3: 72 | L3: 138 | M3: 231 | N3: 90 | O3: 169 | P3: 278
A4: Region 2 | B4: 2 | D4: Region 11Standard Life Amount5 | E4: 45 | F4: 80 | G4: 121 | H4: 56 | I4: 101 | J4: 168 | K4: 63 | L4: 113 | M4: 188 | N4: 76 | O4: 138 | P4: 228
D5: Region 12Standard Life Amount5 | E5: 52 | F5: 93 | G5: 141 | H5: 65 | I5: 118 | J5: 195 | K5: 71 | L5: 131 | M5: 220 | N5: 88 | O5: 161 | P5: 264
D7: Region 21Enhanced Life $50,0005 | E7: =SUM(E2+$E$94) -> 55.8 | F7: 94.8 | G7: 137.8 | H7: =SUM(H2+$H$94) -> 65.4 | I7: 116.4 | J7: 186.4 | K7: =SUM(K2+$H$94) -> 71.4 | L7: 126.4 | M7: 205.4 | N7: =SUM(N2+$K$94) -> 85 | O7: 153 | P7: 246
D8: Region 22Enhanced Life $50,0005 | E8: 62.8 | F8: 107.8 | G8: 157.8 | H8: 74.4 | I8: 132.4 | J8: 213.4 | K8: 80.4 | L8: 146.4 | M8: 239.4 | N8: 97 | O8: 176 | P8: 285
D9: Region 11Enhanced Life $50,0005 | E9: 54.8 | F9: 89.8 | G9: 130.8 | H9: 64.4 | I9: 109.4 | J9: 176.4 | K9: 71.4 | L9: 121.4 | M9: 196.4 | N9: 83 | O9: 145 | P9: 235
D10: Region 12Enhanced Life $50,0005 | E10: 61.8 | F10: 102.8 | G10: 150.8 | H10: 73.4 | I10: 126.4 | J10: 203.4 | K10: 79.4 | L10: 139.4 | M10: 228.4 | N10: 95 | O10: 168 | P10: 271
A12: List_EffDate | B12: List_LifeAmounts | D12: Region 21Enhanced Life $100,0005 | E12: =SUM(E2+$E$95) -> 69.8 | F12: 108.8 | G12: 151.8 | H12: =SUM(H2+$H$95) -> 79.4 | I12: 130.4 | J12: 200.4 | K12: =SUM(K2+$H$95) -> 85.4 | L12: 140.4 | M12: 219.4 | N12: =SUM(N2+$K$95) -> 99 | O12: 167 | P12: 260
A13: Select your effective date | B13: Standard Life Amount | D13: Region 22Enhanced Life $100,0005 | E13: 76.8 | F13: 121.8 | G13: 171.8 | H13: 88.4 | I13: 146.4 | J13: 227.4 | K13: 94.4 | L13: 160.4 | M13: 253.4 | N13: 111 | O13: 190 | P13: 299
A14: 1/1/19 | B14: Enhanced Life $50,000 | D14: Region 11Enhanced Life $100,0005 | E14: 68.8 | F14: 103.8 | G14: 144.8 | H14: 78.4 | I14: 123.4 | J14: 190.4 | K14: 85.4 | L14: 135.4 | M14: 210.4 | N14: 97 | O14: 159 | P14: 249
A15: 2/1/19 | B15: Enhanced Life $100,000 | D15: Region 12Enhanced Life $100,0005 | E15: 75.8 | F15: 116.8 | G15: 164.8 | H15: 87.4 | I15: 140.4 | J15: 217.4 | K15: 93.4 | L15: 153.4 | M15: 242.4 | N15: 109 | O15: 182 | P15: 285
A16: 3/1/19 | B16: Enhanced Life $150,000
A17: 4/1/19 | D17: Region 21Enhanced Life $150,0005 | E17: =SUM(E2+$E$96) -> 83.8 | F17: 122.8 | G17: 165.8 | H17: =SUM(H2+$H$96) -> 93.4 | I17: 144.4 | J17: 214.4 | K17: =SUM(K2+$H$96) -> 99.4 | L17: 154.4 | M17: 233.4 | N17: =SUM(N2+$K$96) -> 113 | O17: 181 | P17: 274
A18: 5/1/19 | D18: Region 22Enhanced Life $150,0005 | E18: 90.8 | F18: 135.8 | G18: 185.8 | H18: 102.4 | I18: 160.4 | J18: 241.4 | K18: 108.4 | L18: 174.4 | M18: 267.4 | N18: 125 | O18: 204 | P18: 313
A19: 6/1/19 | D19: Region 11Enhanced Life $150,0005 | E19: 82.8 | F19: 117.8 | G19: 158.8 | H19: 92.4 | I19: 137.4 | J19: 204.4 | K19: 99.4 | L19: 149.4 | M19: 224.4 | N19: 111 | O19: 173 | P19: 263
A20: 7/1/19 | D20: Region 12Enhanced Life $150,0005 | E20: 89.8 | F20: 130.8 | G20: 178.8 | H20: 101.4 | I20: 154.4 | J20: 231.4 | K20: 107.4 | L20: 167.4 | M20: 256.4 | N20: 123 | O20: 196 | P20: 299
A21: 8/1/19
A22: 9/1/19 | D22: Region 21Standard Life Amount2-4 | E22: 49 | F22: 91 | G22: 137 | H22: 0 | I22: 0 | J22: 0 | K22: 0 | L22: 0 | M22: 0 | N22: 0 | O22: 0 | P22: 0
A23: 10/1/19 | D23: Region 22Standard Life Amount2-4 | E23: 57 | F23: 106 | G23: 160 | H23: 0 | I23: 0 | J23: 0 | K23: 0 | L23: 0 | M23: 0 | N23: 0 | O23: 0 | P23: 0
A24: 11/1/19 | D24: Region 11Standard Life Amount2-4 | E24: 49 | F24: 86 | G24: 131 | H24: 0 | I24: 0 | J24: 0 | K24: 0 | L24: 0 | M24: 0 | N24: 0 | O24: 0 | P24: 0
A25: 12/1/19 | D25: Region 12Standard Life Amount2-4 | E25: 57 | F25: 101 | G25: 153 | H25: 0 | I25: 0 | J25: 0 | K25: 0 | L25: 0 | M25: 0 | N25: 0 | O25: 0 | P25: 0
D27: Region 21Enhanced Life $50,0002-4 | E27: 0 | F27: 0 | G27: 0 | H27: 0 | I27: 0 | J27: 0 | K27: 0 | L27: 0 | M27: 0 | N27: 0 | O27: 0 | P27: 0
D28: Region 22Enhanced Life $50,0002-4 | E28: 0 | F28: 0 | G28: 0 | H28: 0 | I28: 0 | J28: 0 | K28: 0 | L28: 0 | M28: 0 | N28: 0 | O28: 0 | P28: 0
A29: List_Area_HMO | B29: List_EligibleEEs | D29: Region 11Enhanced Life $50,0002-4 | E29: 0 | F29: 0 | G29: 0 | H29: 0 | I29: 0 | J29: 0 | K29: 0 | L29: 0 | M29: 0 | N29: 0 | O29: 0 | P29: 0
A30: Select your CA DHMO Region | B30: Select your group size | D30: Region 12Enhanced Life $50,0002-4 | E30: 0 | F30: 0 | G30: 0 | H30: 0 | I30: 0 | J30: 0 | K30: 0 | L30: 0 | M30: 0 | N30: 0 | O30: 0 | P30: 0
A31: Region 1 & 2 | B31: 2-9 Employees
A32: Region 3 | B32: 10-50 Employees | D32: Region 21Enhanced Life $100,0002-4 | E32: 0 | F32: 0 | G32: 0 | H32: 0 | I32: 0 | J32: 0 | K32: 0 | L32: 0 | M32: 0 | N32: 0 | O32: 0 | P32: 0
A33: Region 4 | B33: 51-99 Employees | D33: Region 22Enhanced Life $100,0002-4 | E33: 0 | F33: 0 | G33: 0 | H33: 0 | I33: 0 | J33: 0 | K33: 0 | L33: 0 | M33: 0 | N33: 0 | O33: 0 | P33: 0
A34: Region 5 | D34: Region 11Enhanced Life $100,0002-4 | E34: 0 | F34: 0 | G34: 0 | H34: 0 | I34: 0 | J34: 0 | K34: 0 | L34: 0 | M34: 0 | N34: 0 | O34: 0 | P34: 0
D35: Region 12Enhanced Life $100,0002-4 | E35: 0 | F35: 0 | G35: 0 | H35: 0 | I35: 0 | J35: 0 | K35: 0 | L35: 0 | M35: 0 | N35: 0 | O35: 0 | P35: 0
D37: Region 21Enhanced Life $150,0002-4 | E37: 0 | F37: 0 | G37: 0 | H37: 0 | I37: 0 | J37: 0 | K37: 0 | L37: 0 | M37: 0 | N37: 0 | O37: 0 | P37: 0
D38: Region 22Enhanced Life $150,0002-4 | E38: 0 | F38: 0 | G38: 0 | H38: 0 | I38: 0 | J38: 0 | K38: 0 | L38: 0 | M38: 0 | N38: 0 | O38: 0 | P38: 0
D39: Region 11Enhanced Life $150,0002-4 | E39: 0 | F39: 0 | G39: 0 | H39: 0 | I39: 0 | J39: 0 | K39: 0 | L39: 0 | M39: 0 | N39: 0 | O39: 0 | P39: 0
D40: Region 12Enhanced Life $150,0002-4 | E40: 0 | F40: 0 | G40: 0 | H40: 0 | I40: 0 | J40: 0 | K40: 0 | L40: 0 | M40: 0 | N40: 0 | O40: 0 | P40: 0
A46: Payroll_Frequency | B46: Plan_Name (HMO)
A47: Select your payroll frequency | B47: Select your HMO plan type | D47: Select your CA PPO RegionSelect your SIC LevelStandard Life Amount5 | E47: 0 | F47: 0 | G47: 0 | H47: 0 | I47: 0 | J47: 0 | K47: 0 | L47: 0 | M47: 0 | N47: 0 | O47: 0 | P47: 0
A48: Weekly | B48: CoPower ONE Good | D48: Select your CA PPO Region1Standard Life Amount5 | E48: 0 | F48: 0 | G48: 0 | H48: 0 | I48: 0 | J48: 0 | K48: 0 | L48: 0 | M48: 0 | N48: 0 | O48: 0 | P48: 0
A49: Biweekly | B49: CoPower ONE Better | D49: Select your CA PPO Region2Standard Life Amount5 | E49: 0 | F49: 0 | G49: 0 | H49: 0 | I49: 0 | J49: 0 | K49: 0 | L49: 0 | M49: 0 | N49: 0 | O49: 0 | P49: 0
A50: 2x Monthly | B50: CoPower ONE Better Plus | D50: Select your CA PPO RegionSelect your SIC LevelEnhanced Life $50,0005 | E50: 0 | F50: 0 | G50: 0 | H50: 0 | I50: 0 | J50: 0 | K50: 0 | L50: 0 | M50: 0 | N50: 0 | O50: 0 | P50: 0
A51: Monthly | B51: CoPower ONE Best | D51: Select your CA PPO Region1Enhanced Life $50,0005 | E51: 0 | F51: 0 | G51: 0 | H51: 0 | I51: 0 | J51: 0 | K51: 0 | L51: 0 | M51: 0 | N51: 0 | O51: 0 | P51: 0
D52: Select your CA PPO Region2Enhanced Life $50,0005 | E52: 0 | F52: 0 | G52: 0 | H52: 0 | I52: 0 | J52: 0 | K52: 0 | L52: 0 | M52: 0 | N52: 0 | O52: 0 | P52: 0
A53: List_EligibleEEs (Vol) | B53: Plan_Name (PPO) | D53: Select your CA PPO RegionSelect your SIC LevelEnhanced Life $100,0005 | E53: 0 | F53: 0 | G53: 0 | H53: 0 | I53: 0 | J53: 0 | K53: 0 | L53: 0 | M53: 0 | N53: 0 | O53: 0 | P53: 0
A54: Select your group size | B54: Select your PPO plan type | D54: Select your CA PPO Region1Enhanced Life $100,0005 | E54: 0 | F54: 0 | G54: 0 | H54: 0 | I54: 0 | J54: 0 | K54: 0 | L54: 0 | M54: 0 | N54: 0 | O54: 0 | P54: 0
A55: 5-9 Employees | B55: CoPower ONE Good | D55: Select your CA PPO Region2Enhanced Life $100,0005 | E55: 0 | F55: 0 | G55: 0 | H55: 0 | I55: 0 | J55: 0 | K55: 0 | L55: 0 | M55: 0 | N55: 0 | O55: 0 | P55: 0
A56: 10-99 Employees | B56: CoPower ONE Better | D56: Select your CA PPO RegionSelect your SIC LevelEnhanced Life $150,0005 | E56: 0 | F56: 0 | G56: 0 | H56: 0 | I56: 0 | J56: 0 | K56: 0 | L56: 0 | M56: 0 | N56: 0 | O56: 0 | P56: 0
B57: CoPower ONE Better Plus | D57: Select your CA PPO Region1Enhanced Life $150,0005 | E57: 0 | F57: 0 | G57: 0 | H57: 0 | I57: 0 | J57: 0 | K57: 0 | L57: 0 | M57: 0 | N57: 0 | O57: 0 | P57: 0
B58: CoPower ONE Best | D58: Select your CA PPO Region2Enhanced Life $150,0005 | E58: 0 | F58: 0 | G58: 0 | H58: 0 | I58: 0 | J58: 0 | K58: 0 | L58: 0 | M58: 0 | N58: 0 | O58: 0 | P58: 0
E59: 0 | F59: 0 | G59: 0 | H59: 0 | I59: 0 | J59: 0 | K59: 0 | L59: 0 | M59: 0 | N59: 0 | O59: 0 | P59: 0
D60: Region 2Select your SIC LevelStandard Life Amount5 | E60: 0 | F60: 0 | G60: 0 | H60: 0 | I60: 0 | J60: 0 | K60: 0 | L60: 0 | M60: 0 | N60: 0 | O60: 0 | P60: 0
A61: Names (for life amount) | B61: Plan_Name (PPO Voluntary) | D61: Region 2Select your SIC LevelEnhanced Life $50,0005 | E61: 0 | F61: 0 | G61: 0 | H61: 0 | I61: 0 | J61: 0 | K61: 0 | L61: 0 | M61: 0 | N61: 0 | O61: 0 | P61: 0
A62: 2To9Employees | B62: Select your Voluntary PPO plan type | D62: Region 2Select your SIC LevelEnhanced Life $100,0005 | E62: 0 | F62: 0 | G62: 0 | H62: 0 | I62: 0 | J62: 0 | K62: 0 | L62: 0 | M62: 0 | N62: 0 | O62: 0 | P62: 0
A63: 10To99Employees | B63: CoPower ONE Voluntary (With Ortho) | D63: Region 2Select your SIC LevelEnhanced Life $150,0005 | E63: 0 | F63: 0 | G63: 0 | H63: 0 | I63: 0 | J63: 0 | K63: 0 | L63: 0 | M63: 0 | N63: 0 | O63: 0 | P63: 0
B64: CoPower ONE Voluntary (Without Ortho) | E64: 0 | F64: 0 | G64: 0 | H64: 0 | I64: 0 | J64: 0 | K64: 0 | L64: 0 | M64: 0 | N64: 0 | O64: 0 | P64: 0
D65: Region 1Select your SIC LevelStandard Life Amount5 | E65: 0 | F65: 0 | G65: 0 | H65: 0 | I65: 0 | J65: 0 | K65: 0 | L65: 0 | M65: 0 | N65: 0 | O65: 0 | P65: 0
B66: Plan_Name (HMO Voluntary) | D66: Region 1Select your SIC LevelEnhanced Life $50,0005 | E66: 0 | F66: 0 | G66: 0 | H66: 0 | I66: 0 | J66: 0 | K66: 0 | L66: 0 | M66: 0 | N66: 0 | O66: 0 | P66: 0
B67: Select your Voluntary HMO plan type | D67: Region 1Select your SIC LevelEnhanced Life $100,0005 | E67: 0 | F67: 0 | G67: 0 | H67: 0 | I67: 0 | J67: 0 | K67: 0 | L67: 0 | M67: 0 | N67: 0 | O67: 0 | P67: 0
B68: CoPower ONE Good | D68: Region 1Select your SIC LevelEnhanced Life $150,0005 | E68: 0 | F68: 0 | G68: 0 | H68: 0 | I68: 0 | J68: 0 | K68: 0 | L68: 0 | M68: 0 | N68: 0 | O68: 0 | P68: 0
B69: CoPower ONE Better
B70: CoPower ONE Better Plus | D70: Select your CA PPO RegionSelect your SIC LevelStandard Life Amount2-4 | E70: 0 | F70: 0 | G70: 0 | H70: 0 | I70: 0 | J70: 0 | K70: 0 | L70: 0 | M70: 0 | N70: 0 | O70: 0 | P70: 0
B71: CoPower ONE Best | D71: Select your CA PPO Region1Standard Life Amount2-4 | E71: 0 | F71: 0 | G71: 0 | H71: 0 | I71: 0 | J71: 0 | K71: 0 | L71: 0 | M71: 0 | N71: 0 | O71: 0 | P71: 0
D72: Select your CA PPO Region2Standard Life Amount2-4 | E72: 0 | F72: 0 | G72: 0 | H72: 0 | I72: 0 | J72: 0 | K72: 0 | L72: 0 | M72: 0 | N72: 0 | O72: 0 | P72: 0
D73: Select your CA PPO RegionSelect your SIC LevelEnhanced Life $50,0002-4 | E73: 0 | F73: 0 | G73: 0 | H73: 0 | I73: 0 | J73: 0 | K73: 0 | L73: 0 | M73: 0 | N73: 0 | O73: 0 | P73: 0
D74: Select your CA PPO Region1Enhanced Life $50,0002-4 | E74: 0 | F74: 0 | G74: 0 | H74: 0 | I74: 0 | J74: 0 | K74: 0 | L74: 0 | M74: 0 | N74: 0 | O74: 0 | P74: 0
D75: Select your CA PPO Region2Enhanced Life $50,0002-4 | E75: 0 | F75: 0 | G75: 0 | H75: 0 | I75: 0 | J75: 0 | K75: 0 | L75: 0 | M75: 0 | N75: 0 | O75: 0 | P75: 0
D76: Select your CA PPO RegionSelect your SIC LevelEnhanced Life $100,0002-4 | E76: 0 | F76: 0 | G76: 0 | H76: 0 | I76: 0 | J76: 0 | K76: 0 | L76: 0 | M76: 0 | N76: 0 | O76: 0 | P76: 0
D77: Select your CA PPO Region1Enhanced Life $100,0002-4 | E77: 0 | F77: 0 | G77: 0 | H77: 0 | I77: 0 | J77: 0 | K77: 0 | L77: 0 | M77: 0 | N77: 0 | O77: 0 | P77: 0
D78: Select your CA PPO Region2Enhanced Life $100,0002-4 | E78: 0 | F78: 0 | G78: 0 | H78: 0 | I78: 0 | J78: 0 | K78: 0 | L78: 0 | M78: 0 | N78: 0 | O78: 0 | P78: 0
D79: Select your CA PPO RegionSelect your SIC LevelEnhanced Life $150,0002-4 | E79: 0 | F79: 0 | G79: 0 | H79: 0 | I79: 0 | J79: 0 | K79: 0 | L79: 0 | M79: 0 | N79: 0 | O79: 0 | P79: 0
D80: Select your CA PPO Region1Enhanced Life $150,0002-4 | E80: 0 | F80: 0 | G80: 0 | H80: 0 | I80: 0 | J80: 0 | K80: 0 | L80: 0 | M80: 0 | N80: 0 | O80: 0 | P80: 0
D81: Select your CA PPO Region2Enhanced Life $150,0002-4 | E81: 0 | F81: 0 | G81: 0 | H81: 0 | I81: 0 | J81: 0 | K81: 0 | L81: 0 | M81: 0 | N81: 0 | O81: 0 | P81: 0
E82: 0 | F82: 0 | G82: 0 | H82: 0 | I82: 0 | J82: 0 | K82: 0 | L82: 0 | M82: 0 | N82: 0 | O82: 0 | P82: 0
D83: Region 2Select your SIC LevelStandard Life Amount2-4 | E83: 0 | F83: 0 | G83: 0 | H83: 0 | I83: 0 | J83: 0 | K83: 0 | L83: 0 | M83: 0 | N83: 0 | O83: 0 | P83: 0
D84: Region 2Select your SIC LevelEnhanced Life $50,0002-4 | E84: 0 | F84: 0 | G84: 0 | H84: 0 | I84: 0 | J84: 0 | K84: 0 | L84: 0 | M84: 0 | N84: 0 | O84: 0 | P84: 0
D85: Region 2Select your SIC LevelEnhanced Life $100,0002-4 | E85: 0 | F85: 0 | G85: 0 | H85: 0 | I85: 0 | J85: 0 | K85: 0 | L85: 0 | M85: 0 | N85: 0 | O85: 0 | P85: 0
D86: Region 2Select your SIC LevelEnhanced Life $150,0002-4 | E86: 0 | F86: 0 | G86: 0 | H86: 0 | I86: 0 | J86: 0 | K86: 0 | L86: 0 | M86: 0 | N86: 0 | O86: 0 | P86: 0
E87: 0 | F87: 0 | G87: 0 | H87: 0 | I87: 0 | J87: 0 | K87: 0 | L87: 0 | M87: 0 | N87: 0 | O87: 0 | P87: 0
D88: Region 1Select your SIC LevelStandard Life Amount2-4 | E88: 0 | F88: 0 | G88: 0 | H88: 0 | I88: 0 | J88: 0 | K88: 0 | L88: 0 | M88: 0 | N88: 0 | O88: 0 | P88: 0
D89: Region 1Select your SIC LevelEnhanced Life $50,0002-4 | E89: 0 | F89: 0 | G89: 0 | H89: 0 | I89: 0 | J89: 0 | K89: 0 | L89: 0 | M89: 0 | N89: 0 | O89: 0 | P89: 0
D90: Region 1Select your SIC LevelEnhanced Life $100,0002-4 | E90: 0 | F90: 0 | G90: 0 | H90: 0 | I90: 0 | J90: 0 | K90: 0 | L90: 0 | M90: 0 | N90: 0 | O90: 0 | P90: 0
D91: Region 1Select your SIC LevelEnhanced Life $150,0002-4 | E91: 0 | F91: 0 | G91: 0 | H91: 0 | I91: 0 | J91: 0 | K91: 0 | L91: 0 | M91: 0 | N91: 0 | O91: 0 | P91: 0
D93: Enhanced Life Rates | E93: GOOD | H93: BETTER | K93: BEST | N93: BETTER PLUS
D94: $50,000 | E94: 9.8 | H94: 8.4 | K94: 7 | N94: 8.4
D95: $100,000 | E95: 23.8 | H95: 22.4 | K95: 21 | N95: 22.4
D96: $150,000 | E96: 37.8 | H96: 36.4 | K96: 35 | N96: 36.4
D98: List_RateTable_HMO | E98: GOOD (2-99) | H98: BETTER (5-99) | K98: BEST (5-99)
D99: Region 1 & 2Standard Life Amount | E99: 27 | F99: 41 | G99: 59 | H99: 31 | I99: 46 | J99: 66 | K99: 35 | L99: 50 | M99: 73
D100: Region 3Standard Life Amount | E100: 29 | F100: 45 | G100: 65 | H100: 33 | I100: 50 | J100: 73 | K100: 37 | L100: 54 | M100: 79
D101: Region 4Standard Life Amount | E101: 31 | F101: 47 | G101: 69 | H101: 35 | I101: 52 | J101: 76 | K101: 39 | L101: 57 | M101: 82
D102: Region 5Standard Life Amount | E102: 71 | F102: 113 | G102: 166 | H102: 75 | I102: 118 | J102: 173 | K102: 78 | L102: 122 | M102: 179
D104: Region 1 & 2Enhanced Life $50,000 | E104: =SUM(E99+$E$94) -> 36.8 | F104: =SUM(F99+$E$94) -> 50.8 | G104: 68.8 | H104: =SUM(H99+$H$94) -> 39.4 | I104: 54.4 | J104: 74.4 | K104: =SUM(K99+$K$94) -> 42 | L104: 57 | M104: 80
D105: Region 3Enhanced Life $50,000 | E105: 38.8 | F105: 54.8 | G105: 74.8 | H105: 41.4 | I105: 58.4 | J105: 81.4 | K105: 44 | L105: 61 | M105: 86
D106: Region 4Enhanced Life $50,000 | E106: 40.8 | F106: 56.8 | G106: 78.8 | H106: =SUM(H101+$H$94) -> 43.4 | I106: 60.4 | J106: 84.4 | K106: =SUM(K101+$K$94) -> 46 | L106: 64 | M106: 89
D107: Region 5Enhanced Life $50,000 | E107: 80.8 | F107: 122.8 | G107: 175.8 | H107: =SUM(H102+$H$94) -> 83.4 | I107: 126.4 | J107: 181.4 | K107: 85 | L107: 129 | M107: 186
D109: Region 1 & 2Enhanced Life $100,000 | E109: =SUM(E99+$E$95) -> 50.8 | F109: 64.8 | G109: 82.8 | H109: =SUM(H99+$H$95) -> 53.4 | I109: 68.4 | J109: 88.4 | K109: =SUM(K99+$K$95) -> 56 | L109: 71 | M109: 94
D110: Region 3Enhanced Life $100,000 | E110: 52.8 | F110: 68.8 | G110: 88.8 | H110: 55.4 | I110: 72.4 | J110: 95.4 | K110: 58 | L110: 75 | M110: 100
D111: Region 4Enhanced Life $100,000 | E111: 54.8 | F111: 70.8 | G111: 92.8 | H111: 57.4 | I111: 74.4 | J111: 98.4 | K111: 60 | L111: 78 | M111: 103
D112: Region 5Enhanced Life $100,000 | E112: 94.8 | F112: 136.8 | G112: 189.8 | H112: 97.4 | I112: 140.4 | J112: 195.4 | K112: 99 | L112: 143 | M112: 200
D114: Region 1 & 2Enhanced Life $150,000 | E114: =SUM(E99+$E$96) -> 64.8 | F114: 78.8 | G114: 96.8 | H114: =SUM(H99+$H$96) -> 67.4 | I114: 82.4 | J114: 102.4 | K114: =SUM(K99+$K$96) -> 70 | L114: 85 | M114: 108
D115: Region 3Enhanced Life $150,000 | E115: 66.8 | F115: 82.8 | G115: 102.8 | H115: 69.4 | I115: 86.4 | J115: 109.4 | K115: 72 | L115: 89 | M115: 114
D116: Region 4Enhanced Life $150,000 | E116: 68.8 | F116: 84.8 | G116: 106.8 | H116: 71.4 | I116: 88.4 | J116: 112.4 | K116: 74 | L116: 92 | M116: 117
D117: Region 5Enhanced Life $150,000 | E117: 108.8 | F117: 150.8 | G117: 203.8 | H117: 111.4 | I117: 154.4 | J117: 209.4 | K117: 113 | L117: 157 | M117: 214
D120: Select your CA DHMO RegionStandard Life Amount | E120: 0 | F120: 0 | G120: 0 | H120: 0 | I120: 0 | J120: 0 | K120: 0 | L120: 0 | M120: 0
D121: Select your CA DHMO RegionEnhanced Life $50,000 | E121: 0 | F121: 0 | G121: 0 | H121: 0 | I121: 0 | J121: 0 | K121: 0 | L121: 0 | M121: 0
D122: Select your CA DHMO RegionEnhanced Life $100,000 | E122: 0 | F122: 0 | G122: 0 | H122: 0 | I122: 0 | J122: 0 | K122: 0 | L122: 0 | M122: 0
D123: Select your CA DHMO RegionEnhanced Life $150,000 | E123: 0 | F123: 0 | G123: 0 | H123: 0 | I123: 0 | J123: 0 | K123: 0 | L123: 0 | M123: 0
